[Event "Chestnut 2nd Category Final 2025"]
[Site "Kyiv"]
[Date "2025.04.06"]
[Round "6.1"]
[White "Prykhodko, Artem"]
[Black "Lymar, Makar"]
[Result "1/2-1/2"]
[Annotator "NA"]
[ECO "B10"]
[WhiteElo "1678"]
[BlackElo "1565"]
[PlyCount "161"]
[EventDate "2025.04.03"]
[EventCountry "UKR"]
[SourceTitle "playchess.com"]
[Source "ChessBase"]
[SourceQuality "1"]
[TimeControl "600+5"]

1. e4 {[%emt 0:00:02]} c6 {[%emt 0:00:00]} 2. c4 {[%emt 0:00:02]} e6 {[%emt 0:00:13]} 3. Nc3 {[%emt 0:00:03]} d5 {[%emt 0:00:03]} 4. cxd5 {[%emt 0:00:03]} exd5 {[%emt 0:00:02]} 5. exd5 {[%emt 0:00:03]} cxd5 {[%emt 0:00:02]} 6. d4 {[%emt 0:00:01]} Nf6 {[%emt 0:00:02]} 7. Bg5 {[%emt 0:00:09]} h6 {[%emt 0:00:02]} 8. Bh4 {[%emt 0:00:01]} Be7 {[%emt 0:00:02]} 9. Nf3 {[%emt 0:00:08]} Nc6 {[%emt 0:00:06]} 10. Bb5 {[%emt 0:00:09]} O-O {[%emt 0:00:07]} 11. O-O {[%emt 0:00:04]} a6 {[%emt 0:00:01]} 12. Ba4 {[%emt 0:00:04]} b5 {[%emt 0:00:02]} 13. Bb3 {[%emt 0:00:01]} Be6 {[%emt 0:00:07]} 14. Bc2 {[%emt 0:00:25]} Bg4 {[%emt 0:00:14]} 15. Qd3 {[%emt 0:00:03]} g6 {[%emt 0:00:46]} 16. Rfe1 {[%emt 0:00:50]} Nb4 {[%emt 0:00:30]} 17. Qd2 {[%emt 0:00:28]} Nxc2 {[%emt 0:00:14]} 18. Qxc2 {[%emt 0:00:03]} Bxf3 {[%emt 0:00:03]} 19. gxf3 {[%emt 0:00:04]} g5 {[%emt 0:00:26]} 20. Bg3 {[%emt 0:00:06]} Nh7 {[%emt 0:00:18]} 21. Re5 {[%emt 0:00:35]} Nf6 {[%emt 0:00:55]} 22. f4 {[%emt 0:00:10]} Bd6 {[%emt 0:00:12]} 23. Rf5 {[%emt 0:00:22]} g4 {[%emt 0:00:56]} 24. Bh4 {[%emt 0:00:16]} Be7 {[%emt 0:00:07]} 25. Bxf6 {[%emt 0:00:11]} Bxf6 {[%emt 0:00:05]} 26. Rxd5 {[%emt 0:00:03]} Qc8 {[%emt 0:00:15]} 27. Rh5 {[%emt 0:00:38]} Bg7 {[%emt 0:00:39]} 28. f5 {[%emt 0:00:26]} Re8 {[%emt 0:00:43]} 29. f6 {[%emt 0:00:10]} Bf8 {[%emt 0:00:13]} 30. Qd1 {[%emt 0:00:23]} b4 {[%emt 0:00:42]} 31. Nd5 {[%emt 0:00:05]} Qe6 {[%emt 0:00:16]} 32. Ne7+ {[%emt 0:00:24]} Bxe7 {[%emt 0:00:20]} 33. fxe7 {[%emt 0:00:04]} Rxe7 {[%emt 0:00:03]} 34. Qd2 {[%emt 0:00:05]} Kg7 {[%emt 0:00:17]} 35. Re5 {[%emt 0:00:23]} Qf6 {[%emt 0:00:22]} 36. Rxe7 {[%emt 0:00:21]} Qxe7 {[%emt 0:00:02]} 37. Re1 {[%emt 0:00:01]} Qd6 {[%emt 0:00:22]} 38. Re4 {[%emt 0:00:13]} f5 {[%emt 0:00:30]} 39. Re5 {[%emt 0:00:25]} Rd8 {[%emt 0:00:42]} 40. Rxf5 {[%emt 0:00:36]} Qxd4 {[%emt 0:00:02]} 41. Qxd4+ {[%emt 0:00:02]} Rxd4 {[%emt 0:00:02]} 42. Ra5 {[%emt 0:00:02]} Rd1+ {[%emt 0:00:04]} 43. Kg2 {[%emt 0:00:03]} Rd2 {[%emt 0:00:12]} 44. b3 {[%emt 0:00:01]} Rd6 {[%emt 0:00:03]} 45. Ra4 {[%emt 0:00:12]} Rb6 {[%emt 0:00:06]} 46. Kg3 {[%emt 0:00:06]} h5 {[%emt 0:00:05]} 47. Ra5 {[%emt 0:00:05]} Kg6 {[%emt 0:00:10]} 48. Kh4 {[%emt 0:00:02]} Rf6 {[%emt 0:00:16]} 49. Rg5+ {[%emt 0:00:16]} Kf7 {[%emt 0:00:10]} 50. Kg3 {[%emt 0:00:18]} Rh6 {[%emt 0:00:17]} 51. Rf5+ {[%emt 0:00:24]} Ke6 {[%emt 0:00:34]} 52. Ra5 {[%emt 0:00:06]} Kf7 {[%emt 0:00:07]} 53. Rc5 {[%emt 0:00:07]} Ke7 {[%emt 0:00:14]} 54. Rc4 {[%emt 0:00:07]} Rb6 {[%emt 0:00:08]} 55. Kh4 {[%emt 0:00:11]} Rb5 {[%emt 0:00:09]} 56. Rc6 {[%emt 0:00:08]} Ra5 {[%emt 0:00:09]} 57. Rc2 {[%emt 0:00:23]} Rf5 {[%emt 0:00:22]} 58. h3 {[%emt 0:00:33]} gxh3 {[%emt 0:00:13]} 59. Kxh3 {[%emt 0:00:04]} Ra5 {[%emt 0:00:06]} 60. Kh4 {[%emt 0:00:05]} Rf5 {[%emt 0:00:02]} 61. Kg3 {[%emt 0:00:44]} Ra5 {[%emt 0:00:04]} 62. f4 {[%emt 0:00:04]} Kf6 {[%emt 0:00:20]} 63. Rc4 {[%emt 0:00:20]} Rxa2 {[%emt 0:00:06]} 64. Rxb4 {[%emt 0:00:03]} Kf5 {[%emt 0:00:06]} 65. Rc4 {[%emt 0:00:27]} a5 {[%emt 0:00:06]} 66. Rc5+ {[%emt 0:00:04]} Kg6 {[%emt 0:00:02]} 67. f5+ {[%emt 0:00:02]} Kf6 {[%emt 0:00:04]} 68. Kh4 {[%emt 0:00:07]} Rf2 {[%emt 0:00:08]} 69. Rxa5 {[%emt 0:00:12]} Rxf5 {[%emt 0:00:02]} 70. Ra6+ {[%emt 0:00:18]} Ke7 {[%emt 0:00:07]} 71. Rb6 {[%emt 0:00:04]} Kd7 {[%emt 0:00:02]} 72. Ra6 {[%emt 0:00:24]} Rb5 {[%emt 0:00:09]} 73. Ra3 {[%emt 0:00:11]} Kc6 {[%emt 0:00:02]} 74. Ra6+ {[%emt 0:00:03]} Rb6 {[%emt 0:00:01]} 75. Ra3 {[%emt 0:00:23]} Rb5 {[%emt 0:00:10]} 76. Ra6+ {[%emt 0:00:14]} Kc5 {[%emt 0:00:03]} 77. Ra8 {[%emt 0:00:12]} Kb4 {[%emt 0:00:06]} 78. Ra1 {[%emt 0:00:14]} Kxb3 {[%emt 0:00:10]} 79. Rb1+ {[%emt 0:00:01]} Kc4 {[%emt 0:00:01]} 80. Rxb5 {[%emt 0:00:03]} Kxb5 {[%emt 0:00:01]} 81. Kxh5 1/2-1/2

[Event "Chestnut 2nd Category Final 2025"]
[Site "Kyiv"]
[Date "2025.04.06"]
[Round "6.2"]
[White "Fabrykator, Myroslava"]
[Black "Ruzhanskyi, Kiril"]
[Result "0-1"]
[Annotator "NA"]
[ECO "B06"]
[WhiteElo "1457"]
[BlackElo "1534"]
[PlyCount "52"]
[EventDate "2025.04.03"]
[EventCountry "UKR"]
[SourceTitle "playchess.com"]
[Source "ChessBase"]
[SourceQuality "1"]
[TimeControl "600+5"]

1. e4 {[%emt 0:00:02]} g6 {[%emt 0:00:00]} 2. d4 {[%emt 0:00:02]} c6 {[%emt 0:00:01]} 3. Nc3 {[%emt 0:00:05]} d5 {[%emt 0:00:01]} 4. e5 {[%emt 0:00:04]} Bg7 {[%emt 0:00:01]} 5. Nf3 {[%emt 0:00:01]} Bg4 {[%emt 0:00:02]} 6. h3 {[%emt 0:00:02]} Bxf3 {[%emt 0:00:04]} 7. Qxf3 {[%emt 0:00:05]} e6 {[%emt 0:00:02]} 8. Be3 {[%emt 0:00:16]} Nd7 {[%emt 0:00:01]} 9. Bd3 {[%emt 0:00:11]} Ne7 {[%emt 0:00:04]} 10. O-O {[%emt 0:00:06]} O-O {[%emt 0:00:32]} 11. Bg5 {[%emt 0:00:26]} Re8 {[%emt 0:00:37]} 12. Qe3 {[%emt 0:00:35]} Qb6 {[%emt 0:01:23]} 13. Rab1 {[%emt 0:00:43]} Rac8 {[%emt 0:00:47]} 14. Qf4 {[%emt 0:00:40]} c5 {[%emt 0:00:13]} 15. Na4 {[%emt 0:01:59]} Qb4 {[%emt 0:00:08]} 16. Nxc5 {[%emt 0:00:38]} Nxc5 {[%emt 0:00:04]} 17. dxc5 {[%emt 0:00:08]} Qxf4 {[%emt 0:00:03]} 18. Bxf4 {[%emt 0:00:03]} Rxc5 {[%emt 0:00:03]} 19. a4 {[%emt 0:01:30]} Rec8 {[%emt 0:01:16]} 20. b4 {[%emt 0:00:59]} R5c7 {[%emt 0:00:08]} 21. Rfe1 {[%emt 0:00:47]} Nc6 {[%emt 0:00:28]} 22. c3 {[%emt 0:01:16]} Bf8 {[%emt 0:00:57]} 23. Rbc1 {[%emt 0:00:42]} a5 {[%emt 0:00:59]} 24. b5 {[%emt 0:00:11]} Ne7 {[%emt 0:00:01]} 25. Bd2 {[%emt 0:00:18]} b6 {[%emt 0:00:15]} 26. Re2 d4 0-1

[Event "Chestnut 2nd Category Final 2025"]
[Site "Kyiv"]
[Date "2025.04.06"]
[Round "6.3"]
[White "Diachuk, Ihor"]
[Black "Voloshyn, Maksym"]
[Result "0-1"]
[Annotator "NA"]
[ECO "C01"]
[WhiteElo "1550"]
[BlackElo "1621"]
[PlyCount "142"]
[EventDate "2025.04.03"]
[EventCountry "UKR"]
[SourceTitle "playchess.com"]
[Source "ChessBase"]
[SourceQuality "1"]
[TimeControl "600+5"]

1. e4 {[%emt 0:00:02]} e6 {[%emt 0:00:01]} 2. d4 {[%emt 0:00:02]} d5 {[%emt 0:00:01]} 3. exd5 {[%emt 0:00:02]} exd5 {[%emt 0:00:01]} 4. Bd3 {[%emt 0:00:03]} Bd6 {[%emt 0:00:01]} 5. c3 {[%emt 0:00:02]} c6 {[%emt 0:00:02]} 6. h3 {[%emt 0:00:04]} h6 {[%emt 0:00:01]} 7. Nf3 {[%emt 0:00:06]} Nf6 {[%emt 0:00:01]} 8. Qe2+ {[%emt 0:00:07]} Qe7 {[%emt 0:00:04]} 9. Qxe7+ {[%emt 0:00:03]} Bxe7 {[%emt 0:00:02]} 10. Bf4 {[%emt 0:00:04]} O-O {[%emt 0:00:05]} 11. O-O {[%emt 0:00:02]} Rd8 {[%emt 0:00:03]} 12. Nbd2 {[%emt 0:00:02]} Be6 {[%emt 0:00:02]} 13. Bg3 {[%emt 0:00:04]} Bd6 {[%emt 0:00:03]} 14. Bxd6 {[%emt 0:00:04]} Rxd6 {[%emt 0:00:02]} 15. Ne5 {[%emt 0:00:07]} Rd8 {[%emt 0:00:07]} 16. Ndf3 {[%emt 0:00:05]} Nbd7 {[%emt 0:00:01]} 17. Rfe1 {[%emt 0:00:04]} Nxe5 {[%emt 0:00:02]} 18. Nxe5 {[%emt 0:00:03]} Nd7 {[%emt 0:00:01]} 19. Nxd7 {[%emt 0:00:07]} Rxd7 {[%emt 0:00:10]} 20. Re3 {[%emt 0:00:02]} Re8 {[%emt 0:00:02]} 21. Rae1 {[%emt 0:00:02]} Rde7 {[%emt 0:00:13]} 22. Kf1 {[%emt 0:00:08]} Kf8 {[%emt 0:00:02]} 23. f3 {[%emt 0:00:02]} Bd7 {[%emt 0:00:22]} 24. Rxe7 {[%emt 0:00:04]} Rxe7 {[%emt 0:00:01]} 25. Rxe7 {[%emt 0:00:03]} Kxe7 {[%emt 0:00:02]} 26. Kf2 {[%emt 0:00:01]} Kd6 {[%emt 0:00:01]} 27. Ke3 {[%emt 0:00:04]} b6 {[%emt 0:00:03]} 28. h4 {[%emt 0:00:02]} c5 {[%emt 0:00:04]} 29. g4 {[%emt 0:00:03]} c4 {[%emt 0:00:10]} 30. Bc2 {[%emt 0:00:03]} b5 {[%emt 0:00:01]} 31. b3 {[%emt 0:00:01]} a5 {[%emt 0:00:07]} 32. h5 {[%emt 0:00:08]} b4 {[%emt 0:00:13]} 33. cxb4 {[%emt 0:00:24]} axb4 {[%emt 0:00:01]} 34. bxc4 {[%emt 0:00:07]} dxc4 {[%emt 0:00:02]} 35. Ke4 {[%emt 0:00:03]} Bc6+ {[%emt 0:00:01]} 36. Ke3 {[%emt 0:00:03]} Bd5 {[%emt 0:00:07]} 37. f4 {[%emt 0:00:06]} Kc6 {[%emt 0:00:01]} 38. g5 {[%emt 0:00:03]} Kb5 {[%emt 0:00:15]} 39. Kd2 {[%emt 0:00:14]} b3 {[%emt 0:00:06]} 40. axb3 {[%emt 0:00:02]} cxb3 {[%emt 0:00:02]} 41. Bb1 {[%emt 0:00:01]} Kc4 {[%emt 0:00:04]} 42. g6 {[%emt 0:00:08]} f6 {[%emt 0:00:02]} 43. f5 {[%emt 0:00:03]} Kxd4 {[%emt 0:00:02]} 44. Kc1 {[%emt 0:00:03]} Ke5 {[%emt 0:00:05]} 45. Kb2 {[%emt 0:00:02]} Kf4 {[%emt 0:00:02]} 46. Bd3 {[%emt 0:00:08]} Kg5 {[%emt 0:00:02]} 47. Be2 {[%emt 0:00:07]} Kxf5 {[%emt 0:00:01]} 48. Bd1 {[%emt 0:00:01]} Kf4 {[%emt 0:00:02]} 49. Bxb3 {[%emt 0:00:01]} Bxb3 {[%emt 0:00:01]} 50. Kxb3 {[%emt 0:00:02]} Ke3 {[%emt 0:00:01]} 51. Kc2 {[%emt 0:00:02]} f5 {[%emt 0:00:01]} 52. Kd1 {[%emt 0:00:01]} Kf2 {[%emt 0:00:01]} 53. Kd2 {[%emt 0:00:01]} f4 {[%emt 0:00:01]} 54. Kd3 {[%emt 0:00:01]} f3 {[%emt 0:00:01]} 55. Ke4 {[%emt 0:00:04]} Kg2 {[%emt 0:00:02]} 56. Kf5 {[%emt 0:00:02]} f2 {[%emt 0:00:01]} 57. Ke6 {[%emt 0:00:01]} f1=Q {[%emt 0:00:02]} 58. Ke7 {[%emt 0:00:02]} Qf6+ {[%emt 0:00:02]} 59. Ke8 {[%emt 0:00:01]} Kf3 {[%emt 0:00:06]} 60. Kd7 {[%emt 0:00:02]} Qf5+ {[%emt 0:00:04]} 61. Ke7 {[%emt 0:00:01]} Qxh5 {[%emt 0:00:01]} 62. Kf7 {[%emt 0:00:01]} Qe5 {[%emt 0:00:06]} 63. Kg8 {[%emt 0:00:02]} h5 {[%emt 0:00:10]} 64. Kh8 {[%emt 0:00:01]} Qf6 {[%emt 0:00:15]} 65. Kh7 {[%emt 0:00:04]} h4 {[%emt 0:00:03]} 66. Kh8 {[%emt 0:00:02]} h3 {[%emt 0:00:01]} 67. Kh7 {[%emt 0:00:01]} h2 {[%emt 0:00:02]} 68. Kg8 {[%emt 0:00:03]} Qxg6 {[%emt 0:00:10]} 69. Kh8 {[%emt 0:00:02]} h1=Q+ {[%emt 0:00:02]} 70. Kg8 {[%emt 0:00:01]} Qe6+ {[%emt 0:00:11]} 71. Kxg7 {[%emt 0:00:02]} Qhh6# {[%emt 0:00:02]} 0-1

[Event "Chestnut 2nd Category Final 2025"]
[Site "Kyiv"]
[Date "2025.04.06"]
[Round "6.4"]
[White "Udod, Oleksandra"]
[Black "Kulak, Volodymyr"]
[Result "0-1"]
[Annotator "NA"]
[ECO "D11"]
[WhiteElo "1646"]
[BlackElo "1607"]
[PlyCount "156"]
[EventDate "2025.04.03"]
[EventCountry "UKR"]
[SourceTitle "playchess.com"]
[Source "ChessBase"]
[SourceQuality "1"]
[TimeControl "600+5"]

1. d4 {[%emt 0:00:02]} d5 {[%emt 0:00:02]} 2. c4 {[%emt 0:00:02]} c6 {[%emt 0:00:08]} 3. Nf3 {[%emt 0:00:02]} Nf6 {[%emt 0:00:36]} 4. g3 {[%emt 0:00:03]} Bf5 {[%emt 0:00:11]} 5. Nc3 {[%emt 0:00:02]} e6 {[%emt 0:00:04]} 6. Nh4 {[%emt 0:00:03]} Bg6 {[%emt 0:00:10]} 7. Qb3 {[%emt 0:00:22]} Qd7 {[%emt 0:00:46]} 8. Nxg6 {[%emt 0:01:24]} hxg6 {[%emt 0:00:07]} 9. Bg2 {[%emt 0:00:13]} Be7 {[%emt 0:00:16]} 10. Bg5 {[%emt 0:00:23]} Nh7 {[%emt 0:00:23]} 11. Bxe7 {[%emt 0:00:30]} Qxe7 {[%emt 0:00:07]} 12. e4 {[%emt 0:00:06]} dxe4 {[%emt 0:01:02]} 13. Nxe4 {[%emt 0:00:19]} O-O {[%emt 0:00:25]} 14. c5 {[%emt 0:00:57]} Na6 {[%emt 0:01:14]} 15. Nd6 {[%emt 0:00:29]} Rab8 {[%emt 0:00:14]} 16. Qc3 {[%emt 0:00:36]} Nc7 {[%emt 0:00:36]} 17. O-O {[%emt 0:00:31]} Nd5 {[%emt 0:00:11]} 18. Qc2 {[%emt 0:01:27]} Nhf6 {[%emt 0:00:40]} 19. Rfe1 {[%emt 0:00:34]} Qd7 {[%emt 0:00:08]} 20. a3 {[%emt 0:00:19]} Ne8 {[%emt 0:00:10]} 21. Ne4 {[%emt 0:00:05]} Nef6 {[%emt 0:00:12]} 22. Nd6 {[%emt 0:00:14]} Ne8 {[%emt 0:00:08]} 23. Nxe8 {[%emt 0:00:50]} Rfxe8 {[%emt 0:00:07]} 24. b4 {[%emt 0:00:02]} a6 {[%emt 0:00:22]} 25. Rab1 {[%emt 0:00:21]} Nc7 {[%emt 0:00:13]} 26. Qc3 {[%emt 0:00:23]} Nb5 {[%emt 0:00:10]} 27. Qb3 {[%emt 0:00:25]} Qxd4 {[%emt 0:00:11]} 28. Rbd1 {[%emt 0:00:05]} Qc3 {[%emt 0:00:40]} 29. Re3 {[%emt 0:00:32]} Qxb3 {[%emt 0:00:08]} 30. Rxb3 {[%emt 0:00:02]} Red8 {[%emt 0:00:04]} 31. Bf3 {[%emt 0:00:09]} Nd4 {[%emt 0:00:27]} 32. Bxc6 {[%emt 0:00:53]} Nxc6 {[%emt 0:01:38]} 33. Rc1 {[%emt 0:00:09]} Rd7 {[%emt 0:00:13]} 34. a4 {[%emt 0:00:02]} Rbd8 {[%emt 0:00:18]} 35. Kg2 {[%emt 0:00:02]} Nd4 {[%emt 0:00:12]} 36. Rbb1 {[%emt 0:00:05]} Nf5 {[%emt 0:00:16]} 37. b5 {[%emt 0:00:03]} axb5 {[%emt 0:00:06]} 38. axb5 {[%emt 0:00:02]} Rc7 {[%emt 0:00:05]} 39. Ra1 {[%emt 0:00:15]} Rdc8 {[%emt 0:00:07]} 40. g4 {[%emt 0:00:13]} Ne7 {[%emt 0:00:11]} 41. Ra7 {[%emt 0:00:06]} Rxc5 {[%emt 0:00:04]} 42. Rxc5 Rxc5 {[%emt 0:00:01]} 43. Rxb7 {[%emt 0:00:03]} Nd5 {[%emt 0:00:02]} 44. b6 {[%emt 0:00:03]} Rb5 {[%emt 0:00:01]} 45. Rb8+ {[%emt 0:00:01]} Kh7 {[%emt 0:00:02]} 46. b7 {[%emt 0:00:02]} Nf6 {[%emt 0:00:14]} 47. h3 {[%emt 0:00:02]} Nd7 {[%emt 0:00:04]} 48. Re8 {[%emt 0:00:09]} Rxb7 {[%emt 0:00:03]} 49. Re7 {[%emt 0:00:02]} Nc5 {[%emt 0:00:03]} 50. Rxb7 {[%emt 0:00:01]} Nxb7 {[%emt 0:00:02]} 51. Kg3 {[%emt 0:00:01]} g5 {[%emt 0:00:06]} 52. f3 {[%emt 0:00:03]} Kg6 {[%emt 0:00:03]} 53. h4 {[%emt 0:00:01]} gxh4+ {[%emt 0:00:02]} 54. Kxh4 Nd6 55. f4 {[%emt 0:00:17]} f6 {[%emt 0:00:09]} 56. Kg3 {[%emt 0:00:04]} e5 {[%emt 0:00:06]} 57. Kf3 {[%emt 0:00:14]} exf4 {[%emt 0:00:05]} 58. Kxf4 {[%emt 0:00:02]} Kf7 {[%emt 0:00:02]} 59. g5 {[%emt 0:00:05]} fxg5+ {[%emt 0:00:03]} 60. Kxg5 {[%emt 0:00:01]} Nb7 {[%emt 0:00:02]} 61. Kf5 {[%emt 0:00:04]} g6+ {[%emt 0:00:01]} 62. Kg5 {[%emt 0:00:01]} Kg7 {[%emt 0:00:01]} 63. Kg4 {[%emt 0:00:02]} Kf6 {[%emt 0:00:01]} 64. Kf4 {[%emt 0:00:01]} g5+ {[%emt 0:00:00]} 65. Kg4 {[%emt 0:00:08]} Kg6 {[%emt 0:00:01]} 66. Kg3 {[%emt 0:00:05]} Kf5 {[%emt 0:00:02]} 67. Kf3 {[%emt 0:00:02]} g4+ {[%emt 0:00:02]} 68. Kg3 {[%emt 0:00:02]} Kg5 {[%emt 0:00:01]} 69. Kg2 {[%emt 0:00:02]} Kf4 {[%emt 0:00:01]} 70. Kf2 {[%emt 0:00:13]} g3+ {[%emt 0:00:01]} 71. Kg2 {[%emt 0:00:03]} Kg4 {[%emt 0:00:01]} 72. Kf1 {[%emt 0:00:11]} Kf3 {[%emt 0:00:03]} 73. Kg1 {[%emt 0:00:02]} g2 {[%emt 0:00:03]} 74. Kh2 {[%emt 0:00:06]} Kf2 {[%emt 0:00:03]} 75. Kh3 {[%emt 0:00:24]} g1=Q {[%emt 0:00:12]} 76. Kh4 {[%emt 0:00:01]} Nd6 {[%emt 0:00:02]} 77. Kh5 {[%emt 0:00:05]} Nf7 {[%emt 0:00:07]} 78. Kh4 {[%emt 0:00:01]} Ne5 {[%emt 0:00:00]} 0-1

[Event "Chestnut 2nd Category Final 2025"]
[Site "Kyiv"]
[Date "2025.04.06"]
[Round "6.5"]
[White "Chornyi, Viktor"]
[Black "Atamanchuk, Dmytro"]
[Result "1-0"]
[Annotator "NA"]
[ECO "C77"]
[WhiteElo "1515"]
[BlackElo "1493"]
[PlyCount "141"]
[EventDate "2025.04.03"]
[EventCountry "UKR"]
[SourceTitle "playchess.com"]
[Source "ChessBase"]
[SourceQuality "1"]
[TimeControl "600+5"]

1. e4 {[%emt 0:00:01]} e5 {[%emt 0:00:01]} 2. Nf3 {[%emt 0:00:01]} Nc6 {[%emt 0:00:01]} 3. Bb5 {[%emt 0:00:01]} a6 {[%emt 0:00:01]} 4. Ba4 {[%emt 0:00:01]} Nf6 {[%emt 0:00:01]} 5. Nc3 {[%emt 0:00:01]} Be7 {[%emt 0:00:18]} 6. O-O {[%emt 0:00:02]} b5 {[%emt 0:00:03]} 7. Bb3 {[%emt 0:00:02]} d6 {[%emt 0:00:01]} 8. Re1 {[%emt 0:00:02]} Bg4 {[%emt 0:00:13]} 9. h3 Bh5 {[%emt 0:00:09]} 10. d3 {[%emt 0:00:10]} Nd4 {[%emt 0:00:10]} 11. Be3 {[%emt 0:00:37]} Nxf3+ {[%emt 0:00:19]} 12. gxf3 {[%emt 0:00:03]} Qd7 {[%emt 0:00:15]} 13. Kh2 {[%emt 0:00:06]} c6 {[%emt 0:00:28]} 14. Rg1 {[%emt 0:00:10]} Rg8 {[%emt 0:00:22]} 15. Rg3 {[%emt 0:00:39]} Qb7 {[%emt 0:00:56]} 16. Qg1 {[%emt 0:00:15]} Kf8 {[%emt 0:01:18]} 17. f4 {[%emt 0:00:17]} exf4 {[%emt 0:00:18]} 18. Bxf4 {[%emt 0:00:03]} Bg6 {[%emt 0:00:25]} 19. Qg2 {[%emt 0:00:24]} Nh5 {[%emt 0:00:06]} 20. Rg4 {[%emt 0:00:35]} Qd7 {[%emt 0:00:56]} 21. Bg5 {[%emt 0:00:14]} Bxg5 {[%emt 0:00:15]} 22. Rxg5 {[%emt 0:00:03]} Nf4 {[%emt 0:00:03]} 23. Qf3 {[%emt 0:00:36]} Ne6 {[%emt 0:00:37]} 24. Bxe6 {[%emt 0:00:23]} Qxe6 {[%emt 0:00:01]} 25. a3 {[%emt 0:00:26]} h6 {[%emt 0:00:02]} 26. Rg3 {[%emt 0:00:05]} Ke7 {[%emt 0:00:29]} 27. Re1 {[%emt 0:00:27]} Rge8 {[%emt 0:00:20]} 28. d4 {[%emt 0:00:11]} Kf8 {[%emt 0:00:05]} 29. Qf4 {[%emt 0:01:02]} Kg8 {[%emt 0:01:33]} 30. e5 {[%emt 0:00:15]} Qf5 {[%emt 0:00:40]} 31. Qxf5 {[%emt 0:00:34]} Bxf5 {[%emt 0:00:01]} 32. Rge3 {[%emt 0:00:08]} dxe5 {[%emt 0:00:06]} 33. R1e2 {[%emt 0:00:22]} Kf8 {[%emt 0:00:01]} 34. dxe5 {[%emt 0:00:04]} Re7 {[%emt 0:00:19]} 35. Rd2 {[%emt 0:00:16]} Re6 {[%emt 0:00:28]} 36. f4 {[%emt 0:00:26]} Rae8 {[%emt 0:00:10]} 37. Kg3 {[%emt 0:00:24]} g5 {[%emt 0:00:29]} 38. h4 {[%emt 0:00:22]} gxf4+ {[%emt 0:00:24]} 39. Kxf4 {[%emt 0:00:03]} Bg6 {[%emt 0:00:01]} 40. Nd1 {[%emt 0:00:52]} f6 {[%emt 0:00:09]} 41. Rde2 {[%emt 0:00:18]} fxe5+ {[%emt 0:00:15]} 42. Rxe5 {[%emt 0:00:03]} Rxe5 {[%emt 0:00:02]} 43. Rxe5 {[%emt 0:00:02]} Rxe5 {[%emt 0:00:02]} 44. Kxe5 {[%emt 0:00:03]} Bxc2 {[%emt 0:00:02]} 45. Ne3 {[%emt 0:00:05]} Kg7 {[%emt 0:00:24]} 46. Kd6 {[%emt 0:00:02]} Be4 {[%emt 0:00:01]} 47. Kc5 {[%emt 0:00:11]} a5 {[%emt 0:00:02]} 48. b4 {[%emt 0:00:07]} axb4 {[%emt 0:00:03]} 49. axb4 {[%emt 0:00:02]} Kg6 {[%emt 0:00:03]} 50. Kd6 {[%emt 0:00:11]} Kh5 {[%emt 0:00:04]} 51. Ke5 {[%emt 0:00:04]} Bh1 {[%emt 0:00:08]} 52. Nf5 {[%emt 0:00:06]} Bg2 {[%emt 0:00:10]} 53. Kf4 {[%emt 0:00:05]} Bh3 {[%emt 0:00:02]} 54. Ne7 {[%emt 0:01:03]} Bd7 {[%emt 0:00:14]} 55. Kg3 {[%emt 0:00:02]} Be8 {[%emt 0:00:04]} 56. Ng8 {[%emt 0:00:11]} Bf7 {[%emt 0:00:07]} 57. Ne7 {[%emt 0:00:09]} Bd5 {[%emt 0:00:07]} 58. Nf5 {[%emt 0:00:13]} Kg6 {[%emt 0:00:04]} 59. Nd4 {[%emt 0:00:12]} Kf6 {[%emt 0:00:08]} 60. Kf4 {[%emt 0:00:02]} Kg6 {[%emt 0:00:10]} 61. Nf5 {[%emt 0:00:16]} Be6 {[%emt 0:00:03]} 62. Ne7+ {[%emt 0:00:05]} Kh5 {[%emt 0:00:05]} 63. Nxc6 {[%emt 0:00:11]} Kxh4 {[%emt 0:00:05]} 64. Nd4 {[%emt 0:00:03]} Bc4 {[%emt 0:00:01]} 65. Nf5+ {[%emt 0:00:04]} Kh5 {[%emt 0:00:04]} 66. Nd6 {[%emt 0:00:02]} Kg6 {[%emt 0:00:06]} 67. Ke4 {[%emt 0:00:26]} h5 {[%emt 0:00:01]} 68. Nxc4 {[%emt 0:00:13]} bxc4 {[%emt 0:00:02]} 69. b5 {[%emt 0:00:00]} Kf6 {[%emt 0:00:04]} 70. b6 {[%emt 0:00:02]} Ke7 {[%emt 0:00:00]} 71. b7 {[%emt 0:00:00]} 1-0

[Event "Chestnut 2nd Category Final 2025"]
[Site "Kyiv"]
[Date "2025.04.06"]
[Round "7.1"]
[White "Lymar, Makar"]
[Black "Kravchuk, Sviatoslav"]
[Result "1-0"]
[Annotator "NA"]
[ECO "D43"]
[WhiteElo "1565"]
[BlackElo "1441"]
[PlyCount "59"]
[EventDate "2025.04.03"]
[EventCountry "UKR"]
[SourceTitle "playchess.com"]
[Source "ChessBase"]
[SourceQuality "1"]
[TimeControl "600+5"]

1. d4 {[%emt 0:00:00]} d5 {[%emt 0:00:01]} 2. c4 {[%emt 0:00:01]} c6 {[%emt 0:00:01]} 3. Nc3 {[%emt 0:00:01]} e6 {[%emt 0:00:01]} 4. Nf3 {[%emt 0:00:02]} Nf6 {[%emt 0:00:04]} 5. Bg5 {[%emt 0:00:01]} Bd6 6. e3 {[%emt 0:00:02]} b6 {[%emt 0:00:16]} 7. h3 {[%emt 0:00:02]} Ba6 {[%emt 0:00:12]} 8. Ne5 {[%emt 0:00:22]} h6 {[%emt 0:00:20]} 9. Bh4 {[%emt 0:00:02]} Bxe5 {[%emt 0:00:17]} 10. dxe5 {[%emt 0:00:02]} g5 {[%emt 0:00:04]} 11. Bxg5 {[%emt 0:00:06]} hxg5 {[%emt 0:00:06]} 12. exf6 {[%emt 0:00:03]} Qxf6 {[%emt 0:00:04]} 13. Be2 {[%emt 0:00:15]} Nd7 {[%emt 0:00:15]} 14. O-O {[%emt 0:00:04]} Bxc4 {[%emt 0:00:05]} 15. Bxc4 {[%emt 0:00:04]} dxc4 {[%emt 0:00:03]} 16. Ne4 {[%emt 0:00:33]} Qh6 {[%emt 0:00:19]} 17. Nd6+ {[%emt 0:00:10]} Ke7 {[%emt 0:00:17]} 18. Nxc4 {[%emt 0:00:04]} Rac8 {[%emt 0:00:31]} 19. Qd6+ {[%emt 0:00:17]} Ke8 {[%emt 0:00:08]} 20. Rad1 {[%emt 0:00:05]} Rd8 {[%emt 0:00:13]} 21. Qxc6 {[%emt 0:00:04]} g4 {[%emt 0:00:17]} 22. Rxd7 {[%emt 0:00:44]} Rxd7 {[%emt 0:00:14]} 23. Ne5 {[%emt 0:00:01]} Qh5 {[%emt 0:00:41]} 24. Qxd7+ {[%emt 0:00:15]} Kf8 {[%emt 0:00:03]} 25. Nxg4 {[%emt 0:00:06]} Qg5 {[%emt 0:00:23]} 26. Rc1 {[%emt 0:00:23]} Rh7 {[%emt 0:01:46]} 27. Rc8+ {[%emt 0:00:24]} Kg7 {[%emt 0:00:02]} 28. Qd4+ {[%emt 0:00:09]} f6 {[%emt 0:00:18]} 29. Qd7+ {[%emt 0:00:13]} Kg6 {[%emt 0:00:06]} 30. Rg8+ {[%emt 0:00:03]} 1-0